fUSD/lending_fUSD_20240520
["ID","MTS","AMOUNT","RATE_DAILY","PERIOD"]
[327584519,1716245465931,-500.0,0.0003863,6]
[327584520,1716245465945,-500.0,0.0003863,6]
[327584521,1716245465960,-500.0,0.0003863,6]
[327584522,1716245465973,-286.50487032,0.0003863,6]
[327584523,1716245465987,-525.12415831,0.0003863,6]
[327584524,1716245466002,-1116.21,0.0003863,6]
[327584525,1716245466016,-500.0,0.0003863,6]
[327584526,1716245466030,-500.0,0.0003863,6]
[327584527,1716245466044,-500.0,0.0003863,6]
[327584528,1716245466059,-500.0,0.0003863,6]
[327584529,1716245466072,-500.0,0.0003863,6]
[327584530,1716245466086,-500.0,0.0003863,6]
[327584531,1716245466099,-1335.12,0.0003863,6]
[327584532,1716245466113,-500.0,0.0003863,6]
[327584533,1716245466126,-500.0,0.0003863,6]
[327584534,1716245466140,-500.0,0.0003863,6]
[327584535,1716245466154,-500.0,0.0003863,6]
[327584536,1716245466167,-539.02334056,0.0003863,6]
[327584537,1716245466181,-646.45,0.0003863,6]
[327584538,1716245466195,-968.38,0.0003863,6]
[327584539,1716245466208,-500.0,0.0003863,6]
[327584540,1716245466222,-500.0,0.0003863,6]
[327584541,1716245466236,-500.0,0.0003863,6]
[327584542,1716245466252,-233.561658,0.0003863,14]
[327584543,1716245466266,-1171.28,0.0003863,6]
[327584544,1716245466280,-233.561658,0.0003863,14]
[327584545,1716245466294,-763.5,0.0003863,6]
[327584546,1716245466309,-233.561658,0.0003863,14]
[327584547,1716245466322,-233.561658,0.0003863,14]
[327584548,1716245466336,-233.561658,0.0003863,14]
[327584549,1716245466350,-500.0,0.0003863,6]
[327584550,1716245466364,-500.0,0.0003863,6]
[327584551,1716245466377,-500.0,0.0003863,6]
[327584552,1716245466391,-852.13,0.0003863,6]
[327584553,1716245466404,-500.0,0.0003863,6]
[327584554,1716245466418,-233.561658,0.0003863,14]
[327584555,1716245466432,-233.561658,0.0003863,14]
[327584556,1716245466445,-500.0,0.0003863,6]
[327584557,1716245466459,-233.561658,0.0003863,14]
[327584558,1716245466473,-233.561658,0.0003863,14]
[327584559,1716245466487,-500.0,0.0003863,6]
[327584560,1716245466503,-233.561667,0.0003863,14]
[327584561,1716245466516,-500.0,0.0003863,6]
[327584562,1716245466530,-863.61,0.0003863,6]
[327584563,1716245466543,-500.0,0.0003863,6]
[327584564,1716245466557,-500.0,0.0003863,6]
[327584565,1716245466570,-500.0,0.0003863,6]
[327584566,1716245466584,-978.05,0.0003863,6]
[327584567,1716245466597,-785.07,0.0003863,6]
[327584568,1716245466610,-500.0,0.0003863,6]
[327584569,1716245466623,-500.0,0.0003863,6]
[327584570,1716245466636,-500.0,0.0003863,6]
[327584571,1716245466650,-519.74220299,0.0003863,6]
[327584572,1716245466662,-500.0,0.0003863,6]
[327584573,1716245466676,-751.13,0.0003863,6]
[327584574,1716245466689,-151.0,0.0003863,14]
[327584575,1716245466701,-151.0,0.0003863,14]
[327584576,1716245466715,-3302.95,0.0003863,6]
[327584577,1716245466729,-151.0,0.0003863,14]
[327584578,1716245466744,-151.0,0.0003863,14]
[327584579,1716245466758,-151.0,0.0003863,14]
[327584580,1716245466771,-500.0,0.0003863,6]
[327584581,1716245466784,-500.0,0.0003863,6]
[327584582,1716245466796,-500.0,0.0003863,6]
[327584583,1716245466810,-176.331412,0.0003863,14]
[327584584,1716245466824,-3080.6,0.0003863,6]
[327584585,1716245466840,-1000.0,0.0003863,6]
[327584586,1716245466853,-550.24710833,0.0003863,6]
[327584587,1716245466867,-500.0,0.0003863,6]
[327584588,1716245466886,-725.61,0.0003863,6]
[327584589,1716245466899,-500.0,0.0003863,6]
[327584590,1716245466914,-500.0,0.0003863,6]
[327584591,1716245466927,-4037.06,0.0003863,6]
[327584592,1716245466941,-500.0,0.0003863,6]
[327584593,1716245466957,-500.0,0.0003863,6]
[327584594,1716245466969,-1512.5,0.0003863,6]
[327584595,1716245466978,-500.0,0.0003863,6]
[327584596,1716245466988,-2614.89,0.0003863,6]
[327584597,1716245467000,-850.15,0.0003863,6]
[327584598,1716245467010,-2423.92,0.0003863,6]
[327584599,1716245467020,-504.85868672,0.0003863,6]
[327584600,1716245467030,-500.0,0.0003863,6]
[327584601,1716245467039,-545.56,0.0003863,6]
[327584602,1716245467050,-2445.93,0.0003863,6]
[327584603,1716245467060,-500.0,0.0003863,6]
[327584604,1716245467071,-500.0,0.0003863,6]
[327584605,1716245467082,-1000.0,0.0003863,6]
[327584606,1716245467091,-537.74,0.0003863,6]
[327584607,1716245467100,-612.86,0.0003863,6]
[327584608,1716245467110,-1457.79,0.0003863,6]
[327584609,1716245467119,-500.0,0.0003863,6]
[327584610,1716245467128,-500.0,0.0003863,6]
[327584611,1716245467137,-1187.27,0.0003863,6]
[327584612,1716245467146,-500.0,0.0003863,6]
[327584613,1716245467562,-500.0,0.0003863,6]
[327584614,1716245467590,-3080.59,0.0003863,6]
[327584615,1716245467624,-500.0,0.0003863,6]
[327584616,1716245467644,-500.0,0.0003863,6]
[327584617,1716245467655,-500.0,0.0003863,6]
[327584618,1716245467665,-500.0,0.0003863,6]
[327584619,1716245467675,-151.0,0.0003863,14]
[327584620,1716245467684,-500.0,0.0003863,6]
[327584621,1716245467693,-207.746214,0.0003863,14]
[327584622,1716245467702,-939.38,0.0003863,6]
[327584623,1716245467712,-936.27,0.0003863,6]
[327584624,1716245467721,-1145.85,0.0003863,6]
[327584625,1716245467730,-633.66,0.0003863,6]
[327584626,1716245467739,-513.61118255,0.0003863,6]
[327584627,1716245467750,-500.0,0.0003863,6]
[327584628,1716245467759,-500.0,0.0003863,6]
[327584629,1716245467768,-500.0,0.0003863,6]
[327584630,1716245467777,-500.0,0.0003863,6]
[327584631,1716245467786,-1256.39,0.0003863,6]
[327584632,1716245467795,-500.0,0.0003863,6]
[327584633,1716245467804,-500.0,0.0003863,6]
[327584634,1716245467814,-1868.9,0.0003863,6]
[327584635,1716245467824,-500.0,0.0003863,6]
[327584636,1716245467833,-1093.65,0.0003863,6]
[327584637,1716245467842,-500.0,0.0003863,6]
[327584638,1716245467852,-501.78,0.0003863,6]
[327584639,1716245467861,-500.0,0.0003863,6]
[327584640,1716245467874,-500.0,0.0003863,6]
[327584641,1716245467884,-500.0,0.0003863,6]
[327584642,1716245467893,-500.0,0.0003863,6]
[327584643,1716245467902,-500.0,0.0003863,6]
[327584644,1716245467912,-1390.13,0.0003863,6]
[327584645,1716245467922,-500.0,0.0003863,6]
[327584646,1716245467932,-500.0,0.0003863,6]
[327584647,1716245467941,-500.0,0.0003863,6]
[327584648,1716245467951,-500.0,0.0003863,6]
[327584649,1716245467962,-500.0,0.0003863,6]
[327584650,1716245467972,-500.0,0.0003863,6]
[327584651,1716245467982,-536.13,0.0003863,6]
[327584652,1716245467993,-500.0,0.0003863,6]
[327584653,1716245468003,-500.0,0.0003863,6]
[327584654,1716245468012,-599.81,0.0003863,6]
[327584655,1716245468022,-500.0,0.0003863,6]
[327584656,1716245468031,-500.0,0.0003863,6]
[327584657,1716245468040,-1210.13,0.0003863,6]
[327584658,1716245468050,-1008.66,0.0003863,6]
[327584659,1716245468059,-500.0,0.0003863,6]
[327584660,1716245468068,-949.73,0.0003863,6]
[327584661,1716245468077,-500.0,0.0003863,6]
[327584662,1716245468087,-500.0,0.0003863,6]
[327584663,1716245468096,-506.52719132,0.0003863,2]
[327584664,1716245468105,-507.5,0.0003863,6]
[327584665,1716245468114,-613.49407826,0.0003863,6]
[327584666,1716245468124,-500.0,0.0003863,6]
[327584667,1716245468134,-500.0,0.0003863,6]
[327584668,1716245468144,-500.0,0.0003863,6]
[327584669,1716245468154,-500.0,0.0003863,6]
[327584670,1716245468163,-500.0,0.0003863,6]
[327584671,1716245468172,-500.0,0.0003863,6]
[327584672,1716245468182,-500.0,0.0003863,6]
[327584673,1716245468192,-500.0,0.0003863,6]
[327584674,1716245468201,-500.0,0.0003863,6]
[327584675,1716245468210,-500.0,0.0003863,6]
[327584676,1716245468220,-2488.2,0.0003863,6]
[327584677,1716245468229,-500.0,0.0003863,6]
[327584678,1716245468238,-500.0,0.0003863,6]
[327584679,1716245468250,-994.51,0.0003863,6]
[327584680,1716245468259,-500.0,0.0003863,6]
[327584681,1716245468268,-544.27,0.0003863,6]
[327584682,1716245468277,-500.0,0.0003863,6]
[327584683,1716245468287,-159.276203,0.0003863,14]
[327584684,1716245468296,-500.0,0.0003863,6]
[327584685,1716245468305,-159.276203,0.0003863,14]
[327584686,1716245468315,-553.81,0.0003863,6]
[327584687,1716245468324,-500.0,0.0003863,6]
[327584688,1716245468333,-159.276203,0.0003863,14]
[327584689,1716245468342,-159.276203,0.0003863,14]
[327584690,1716245468352,-159.276203,0.0003863,14]
[327584691,1716245468361,-561.8,0.0003863,6]
[327584692,1716245468371,-500.0,0.0003863,6]
[327584693,1716245468380,-151.0,0.0003863,14]
[327584694,1716245468390,-151.0,0.0003863,14]
[327584695,1716245468399,-151.0,0.0003863,14]
[327584696,1716245468408,-151.0,0.0003863,14]
[327584697,1716245468418,-151.0,0.0003863,14]
[327584698,1716245468426,-159.276203,0.0003863,14]
[327584699,1716245468436,-358.602711,0.0003863,14]
[327584700,1716245468446,-813.72,0.0003863,6]
[327584701,1716245468456,-159.276203,0.0003863,14]
[327584702,1716245468467,-358.602711,0.0003863,14]
[327584703,1716245468477,-159.276203,0.0003863,14]
[327584704,1716245468487,-358.602711,0.0003863,14]
[327584705,1716245468498,-159.276203,0.0003863,14]
[327584706,1716245468508,-358.602711,0.0003863,14]
[327584707,1716245468518,-500.0,0.0003863,6]
[327584708,1716245468527,-159.276199,0.0003863,14]
[327584709,1716245468536,-358.602711,0.0003863,14]
[327584710,1716245468546,-500.0,0.0003863,6]
[327584711,1716245468555,-527.23,0.0003863,6]
[327584712,1716245468564,-358.602711,0.0003863,14]
[327584713,1716245468574,-358.602711,0.0003863,14]
[327584714,1716245468583,-780.82,0.0003863,6]
[327584715,1716245468593,-500.0,0.0003863,6]
[327584716,1716245468603,-358.602711,0.0003863,14]
[327584717,1716245468612,-358.602711,0.0003863,14]
[327584718,1716245468621,-500.0,0.0003863,6]
[327584719,1716245468630,-500.0,0.0003863,6]
[327584720,1716245468639,-748.25,0.0003863,6]
[327584721,1716245468649,-358.602715,0.0003863,14]
[327584722,1716245468659,-540.34,0.0003863,6]
[327584723,1716245468668,-500.0,0.0003863,6]
[327584724,1716245468677,-509.44952694,0.0003863,6]
[327584725,1716245468687,-500.0,0.0003863,6]
[327584726,1716245468696,-500.0,0.0003863,6]
[327584727,1716245468705,-500.0,0.0003863,6]
[327584728,1716245468714,-576.59,0.0003863,6]
[327584729,1716245468723,-1049.02,0.0003863,6]
[327584730,1716245468733,-500.0,0.0003863,6]
[327584731,1716245468743,-3015.58,0.0003863,6]
[327584732,1716245468753,-500.0,0.0003863,6]
[327584733,1716245468762,-500.0,0.0003863,6]
[327584734,1716245468771,-549.31922452,0.0003863,6]
[327584735,1716245468780,-500.0,0.0003863,6]
[327584736,1716245468790,-512.92159574,0.0003863,6]
[327584737,1716245468799,-720.35,0.0003863,6]
[327584738,1716245468808,-2808.06,0.0003863,6]
[327584739,1716245468818,-500.0,0.0003863,6]
[327584740,1716245468827,-1197.9,0.0003863,6]
[327584741,1716245468836,-500.0,0.0003863,6]
[327584742,1716245468845,-3734.43,0.0003863,6]
[327584743,1716245468854,-706.28,0.0003863,6]
[327584744,1716245468863,-500.0,0.0003863,6]
[327584745,1716245468874,-500.0,0.0003863,6]
[327584746,1716245468888,-914.18,0.0003863,6]
[327584747,1716245468898,-500.0,0.0003863,6]
[327584748,1716245468907,-185.645391,0.0003863,14]
[327584749,1716245468916,-500.0,0.0003863,6]
[327584750,1716245468927,-500.0,0.0003863,6]
[327584751,1716245468936,-185.645391,0.0003863,14]
[327584752,1716245468945,-500.0,0.0003863,6]
[327584753,1716245468956,-834.67,0.0003863,6]
[327584754,1716245468965,-185.645391,0.0003863,14]
[327584755,1716245468974,-185.645391,0.0003863,14]
[327584756,1716245468983,-555.57,0.0003863,6]
[327584757,1716245468992,-185.64539,0.0003863,14]
[327584758,1716245469001,-3244.42,0.0003863,6]
[327584759,1716245469011,-3077.27,0.0003863,6]
[327584760,1716245469020,-693.24,0.0003863,6]
[327584761,1716245469030,-500.0,0.0003863,6]
[327584762,1716245469039,-500.0,0.0003863,6]
[327584763,1716245469048,-3754.49,0.0003863,6]
[327584764,1716245469058,-618.2,0.0003863,6]
[327584765,1716245469067,-500.0,0.0003863,6]
[327584766,1716245469077,-500.0,0.0003863,6]
[327584767,1716245469086,-500.0,0.0003863,6]
[327584768,1716245469096,-500.0,0.0003863,6]
[327584769,1716245469105,-500.0,0.0003863,6]
[327584770,1716245469114,-500.0,0.0003863,6]
[327584771,1716245469124,-1764.94,0.0003863,6]
[327584772,1716245469134,-500.0,0.0003863,6]
[327584773,1716245469143,-151.0,0.0003863,14]
[327584774,1716245469152,-151.0,0.0003863,14]
[327584775,1716245469162,-500.0,0.0003863,6]
[327584776,1716245469171,-496.40008,0.0003863,6]
[327584777,1716245469180,-151.0,0.0003863,14]
[327584778,1716245469189,-323.50792136,0.0003863,6]
[327584779,1716245469200,-151.0,0.0003863,14]
[327584780,1716245469209,-500.0,0.0003863,6]
[327584781,1716245469219,-500.0,0.0003863,6]
[327584782,1716245469228,-5927.85,0.0003863,6]
[327584783,1716245469237,-500.0,0.0003863,6]
[327584784,1716245469248,-811.91,0.0003863,6]
[327584785,1716245469257,-500.0,0.0003863,6]
[327584786,1716245469269,-1987.01,0.0003863,6]
[327584787,1716245469278,-500.0,0.0003863,6]
[327584788,1716245469288,-693.3,0.0003863,6]
[327584789,1716245469297,-500.0,0.0003863,6]
[327584790,1716245469306,-1541.83,0.0003863,6]
[327584791,1716245469315,-500.0,0.0003863,6]
[327584792,1716245469325,-500.0,0.0003863,6]
[327584793,1716245469335,-403.91976019,0.0003863,6]
[327584794,1716245469344,-500.0,0.0003863,6]
[327584795,1716245469354,-500.0,0.0003863,6]
[327584796,1716245469363,-1597.12,0.0003863,6]
[327584797,1716245469373,-4898.33,0.0003863,6]
[327584798,1716245469382,-967.86,0.0003863,6]
[327584799,1716245469391,-500.0,0.0003863,6]
[327584800,1716245469401,-5026.25,0.0003863,6]
[327584801,1716245469409,-500.0,0.0003863,6]
[327584802,1716245469419,-151.0,0.0003863,14]
[327584803,1716245469428,-500.0,0.0003863,6]
[327584804,1716245469438,-151.0,0.0003863,14]
[327584805,1716245469447,-151.0,0.0003863,14]
[327584806,1716245469456,-1796.9,0.0003863,6]
[327584807,1716245469466,-151.0,0.0003863,14]
[327584808,1716245469475,-505.81,0.0003863,6]
[327584809,1716245469484,-500.0,0.0003863,6]
[327584810,1716245469494,-500.0,0.0003863,6]
[327584811,1716245469504,-327.68918536,0.0003863,6]
[327584812,1716245469512,-500.0,0.0003863,6]
[327584813,1716245469521,-500.0,0.0003863,6]
[327584814,1716245469531,-500.0,0.0003863,2]
[327584815,1716245469541,-622.79,0.0003863,6]
[327584816,1716245469550,-500.0,0.0003863,6]
[327584817,1716245469559,-500.0,0.0003863,6]
[327584818,1716245469569,-3209.36,0.0003863,6]
[327584819,1716245469578,-500.0,0.0003863,6]
[327584820,1716245469588,-500.0,0.0003863,6]
[327584821,1716245469598,-548.48,0.0003863,6]
[327584822,1716245469608,-500.0,0.0003863,6]
[327584823,1716245469618,-500.0,0.0003863,6]
[327584824,1716245469627,-2753.14,0.0003863,6]
[327584825,1716245469637,-500.0,0.0003863,6]
[327584826,1716245469647,-500.0,0.0003863,6]
[327584827,1716245469657,-16281.11,0.0003863,6]
[327584828,1716245469666,-298.88436876,0.0003863,6]
[327584829,1716245469676,-500.0,0.0003863,6]
[327584830,1716245469685,-577.78,0.0003863,6]
[327584831,1716245469695,-2053.11,0.0003863,6]
[327584832,1716245469704,-507.4848826,0.0003863,6]
[327584833,1716245469714,-918.45,0.0003863,6]
[327584834,1716245469724,-1321.39,0.0003863,6]
[327584835,1716245469733,-500.0,0.0003863,6]
[327584836,1716245469745,-500.0,0.0003863,6]
[327584837,1716245469755,-1326.66,0.0003863,6]
[327584838,1716245469764,-567.32,0.0003863,6]
[327584839,1716245469774,-500.0,0.0003863,6]
[327584840,1716245469784,-751.58,0.0003863,6]
[327584841,1716245469793,-285.498724,0.0003863,14]
[327584842,1716245469804,-285.498724,0.0003863,14]
[327584843,1716245469814,-516.58509476,0.0003863,6]
[327584844,1716245469823,-513.36,0.0003863,6]
[327584845,1716245469833,-285.498724,0.0003863,14]
[327584846,1716245469842,-502.20673327,0.0003863,6]
[327584847,1716245469852,-285.498724,0.0003863,14]
[327584848,1716245469862,-1026.69,0.0003863,6]
[327584849,1716245469876,-2532.84,0.0003863,6]
[327584850,1716245469885,-573.43972277,0.0003863,6]
[327584851,1716245469895,-500.0,0.0003863,6]
[327584852,1716245469905,-500.0,0.0003863,6]
[327584853,1716245469915,-2101.19,0.0003863,6]
[327584854,1716245469926,-592.89,0.0003863,6]
[327584855,1716245469936,-285.498724,0.0003863,14]
[327584856,1716245469947,-570.68,0.0003863,6]
[327584857,1716245469956,-1055.63,0.0003863,6]
[327584858,1716245469966,-285.498724,0.0003863,14]
[327584859,1716245469976,-285.498724,0.0003863,14]
[327584860,1716245469985,-285.498731,0.0003863,14]
[327584861,1716245469995,-620.38,0.0003863,6]
[327584862,1716245470004,-3413.59,0.0003863,6]
[327584863,1716245470015,-500.0,0.0003863,6]
[327584864,1716245470025,-500.0,0.0003863,6]
[327584865,1716245470035,-504.06,0.0003863,6]
[327584866,1716245470045,-740.56,0.0003863,6]
[327584867,1716245470055,-1942.18,0.0003863,6]
[327584868,1716245470065,-1251.93,0.0003863,6]
[327584869,1716245470075,-30429.05,0.0003863,6]
[327584870,1716245470084,-392.3538424,0.0003863,6]
[327584871,1716245470095,-500.0,0.0003863,2]
[327584872,1716245470105,-630.83,0.0003863,6]
[327584873,1716245470115,-500.0,0.0003863,6]
[327584874,1716245470125,-500.0,0.0003863,6]
[327584875,1716245470134,-1844.18,0.0003863,6]
[327584876,1716245470144,-815.91,0.0003863,6]
[327584877,1716245470154,-748.28,0.0003863,6]
[327584878,1716245470164,-500.0,0.0003863,6]
[327584879,1716245470174,-500.0,0.0003863,6]
[327584880,1716245470183,-534.18,0.0003863,6]
[327584881,1716245470193,-3772.16,0.0003863,6]
[327584882,1716245470203,-258.009433,0.0003863,14]
[327584883,1716245470213,-500.0,0.0003863,6]
[327584884,1716245470223,-258.009433,0.0003863,14]
[327584885,1716245470233,-500.0,0.0003863,6]
[327584886,1716245470246,-258.009433,0.0003863,14]
[327584887,1716245470257,-258.009433,0.0003863,14]
[327584888,1716245470267,-500.0,0.0003863,6]
[327584889,1716245470277,-901.56,0.0003863,6]
[327584890,1716245470287,-2815.44,0.0003863,6]
[327584891,1716245470296,-804.6,0.0003863,6]
[327584892,1716245470306,-258.009433,0.0003863,14]
[327584893,1716245470316,-258.009433,0.0003863,14]
[327584894,1716245470326,-500.0,0.0003863,6]
[327584895,1716245470336,-258.009433,0.0003863,14]
[327584896,1716245470345,-500.0,0.0003863,6]
[327584897,1716245470355,-13987.25,0.0003863,6]
[327584898,1716245470364,-258.009434,0.0003863,14]
[327584899,1716245470374,-997.22,0.0003863,6]
[327584900,1716245470384,-1053.44,0.0003863,6]
[327584901,1716245470394,-699.25,0.0003863,6]
[327584902,1716245470403,-751.67,0.0003863,6]
[327584903,1716245470413,-500.0,0.0003863,6]
[327584904,1716245470422,-500.0,0.0003863,6]
[327584905,1716245470431,-1918.99,0.0003863,6]
[327584906,1716245470441,-4140.85,0.0003863,6]
[327584907,1716245470450,-500.0,0.0003863,6]
[327584908,1716245470460,-500.0,0.0003863,6]
[327584909,1716245470469,-3236.59,0.0003863,6]
[327584910,1716245470479,-500.9148532,0.0003863,6]
[327584911,1716245470488,-500.0,0.0003863,6]
[327584912,1716245470499,-2582.59,0.0003863,6]
[327584913,1716245470508,-500.0,0.0003863,6]
[327584914,1716245470518,-613.44,0.0003863,6]
[327584915,1716245470527,-2877.6,0.0003863,6]
[327584916,1716245470537,-500.0,0.0003863,6]
[327584917,1716245470546,-1530.58,0.0003863,6]
[327584918,1716245470555,-595.4,0.0003863,6]
[327584919,1716245470565,-3378.14,0.0003863,6]
[327584920,1716245470575,-500.0,0.0003863,6]
[327584921,1716245470584,-500.0,0.0003863,6]
[327584922,1716245470594,-938.82,0.0003863,6]
[327584923,1716245470603,-500.0,0.0003863,6]
[327584924,1716245470613,-500.0,0.0003863,6]
[327584925,1716245470623,-500.0,0.0003863,6]
[327584926,1716245470632,-1615.98,0.0003863,6]
[327584927,1716245470642,-500.0,0.0003863,6]
[327584928,1716245470651,-500.0,0.0003863,6]
[327584929,1716245470661,-8193.08,0.0003863,6]
[327584930,1716245470670,-500.0,0.0003863,6]
[327584931,1716245470679,-893.96,0.0003863,6]
[327584932,1716245470688,-19028.04,0.0003863,6]
[327584933,1716245470698,-500.67,0.0003863,6]
[327584934,1716245470707,-500.0,0.0003863,6]
[327584935,1716245470716,-575.4,0.0003863,6]
[327584936,1716245470725,-500.0,0.0003863,6]
[327584937,1716245470734,-2645.07,0.0003863,6]
[327584938,1716245470747,-500.0,0.0003863,6]
[327584939,1716245470756,-2985.62,0.0003863,6]
[327584940,1716245470765,-14091.29,0.0003863,6]
[327584941,1716245470774,-1432.403189,0.0003863,14]
[327584942,1716245470783,-1432.403189,0.0003863,14]
[327584943,1716245470792,-1432.403193,0.0003863,14]
[327584944,1716245470802,-500.0,0.0003863,6]
[327584945,1716245470812,-500.0,0.0003863,6]
[327584946,1716245471009,-3314.39,0.0003863,6]
[327584947,1716245471030,-517.19741676,0.0003863,6]
[327584948,1716245471040,-500.0,0.0003863,6]
[327584949,1716245471050,-3347.33,0.0003863,6]
[327584950,1716245471060,-722.13,0.0003863,6]
[327584951,1716245471069,-500.0,0.0003863,6]
[327584952,1716245471079,-740.24,0.0003863,6]
[327584953,1716245471088,-562.91358146,0.0003863,6]
[327584954,1716245471097,-500.0,0.0003863,6]
[327584955,1716245471107,-500.0,0.0003863,6]
[327584956,1716245471116,-1982.85,0.0003863,6]
[327584957,1716245471126,-1682.03,0.0003863,6]
[327584958,1716245471135,-3691.86,0.0003863,6]
[327584959,1716245471145,-525.04,0.0003863,6]
[327584960,1716245471155,-500.0,0.0003863,6]
[327584961,1716245471164,-4880.13,0.0003863,6]
[327584962,1716245471174,-576.52301111,0.0003863,6]
[327584963,1716245471183,-500.0,0.0003863,6]
[327584964,1716245471193,-500.0,0.0003863,6]
[327584965,1716245471202,-3316.89,0.0003863,6]
[327584966,1716245471211,-5016.87,0.0003863,6]
[327584967,1716245471220,-4678.75,0.0003863,6]
[327584968,1716245471230,-550.28,0.0003863,6]
[327584969,1716245471239,-500.0,0.0003863,6]
[327584970,1716245471251,-500.0,0.0003863,6]
[327584971,1716245471260,-538.37,0.0003863,6]
[327584972,1716245471270,-500.0,0.0003863,6]
[327584973,1716245471279,-500.0,0.0003863,6]
[327584974,1716245471289,-559.58464131,0.0003863,6]
[327584975,1716245471298,-500.0,0.0003863,6]
[327584976,1716245471307,-500.0,0.0003863,6]
[327584977,1716245471318,-500.0,0.0003863,6]
[327584978,1716245471328,-1691.03,0.0003863,6]
[327584979,1716245471338,-500.0,0.0003863,6]
[327584980,1716245471347,-532.03,0.0003863,6]
[327584981,1716245471357,-500.0,0.0003863,6]
[327584982,1716245471367,-500.0,0.0003863,6]
[327584983,1716245471376,-2062.0,0.0003863,6]
[327584984,1716245471385,-164.98,0.0003863,6]
[327584985,1716245471395,-1235.65,0.0003863,6]
[327584986,1716245471404,-2558.3,0.0003863,6]
[327584987,1716245471414,-2062.15,0.0003863,6]
[327584988,1716245471423,-579.72,0.0003863,6]
[327584989,1716245471432,-8337.52,0.0003863,6]
[327584990,1716245471441,-2315.84,0.0003863,6]
[327584991,1716245471451,-500.0,0.0003863,6]
[327584992,1716245471460,-973.13,0.0003863,6]
[327584993,1716245471469,-500.0,0.0003863,6]
[327584994,1716245471478,-500.0,0.0003863,6]
[327584995,1716245471487,-500.0,0.0003863,6]
[327584996,1716245471498,-500.0,0.0003863,6]
[327584997,1716245471508,-605.78381563,0.0003863,6]
[327584998,1716245471517,-1471.56,0.0003863,6]
[327584999,1716245471526,-1132.99,0.0003863,6]
[327585000,1716245471536,-500.0,0.0003863,6]
[327585001,1716245471545,-854.29,0.0003863,6]
[327585002,1716245471555,-2469.6,0.0003863,6]
[327585003,1716245471565,-1951.27,0.0003863,6]
[327585004,1716245471575,-674.42,0.0003863,6]
[327585005,1716245471584,-689.39,0.0003863,6]
[327585006,1716245471593,-1671.12,0.0003863,6]
[327585007,1716245471602,-500.0,0.0003863,6]
[327585008,1716245471612,-3317.8,0.0003863,6]
[327585009,1716245471621,-500.0,0.0003863,6]
[327585010,1716245471631,-500.0,0.0003863,6]
[327585011,1716245471640,-500.0,0.0003863,6]
[327585012,1716245471649,-663.65,0.0003863,6]
[327585013,1716245471659,-500.0,0.0003863,6]
[327585014,1716245471668,-2201.17,0.0003863,6]
[327585015,1716245471677,-2634.35,0.0003863,6]
[327585016,1716245471687,-500.0,0.0003863,6]
[327585017,1716245471696,-500.0,0.0003863,6]
[327585018,1716245471705,-500.0,0.0003863,6]